[Event "Early-Titled-Tuesday-Blitz-February-06-2024"]
[Site "Chess.com"]
[Date "2024.02.06"]
[Round "9"]
[White "FairChess_on_YouTube"]
[Black "mbojan"]
[Result "1/2-1/2"]
[WhiteElo "3062"]
[BlackElo "2880"]
[TimeControl "180+1"]
[EndTime "9:45:35 PST"]
[Termination "Game drawn by repetition"]

1. d4 {[%clk 0:03:00.9]} 1... Nf6 {[%clk 0:03:00.4]} 2. c4 {[%clk 0:03:00.7]}
2... e6 {[%clk 0:03:00.6]} 3. Nf3 {[%clk 0:02:57.4]} 3... d5 {[%clk 0:03:00.7]}
4. Bg5 {[%clk 0:02:55.7]} 4... Be7 {[%clk 0:02:47.9]} 5. e3 {[%clk 0:02:55.7]}
5... Nbd7 {[%clk 0:02:32.8]} 6. Qc2 {[%clk 0:02:49.1]} 6... O-O {[%clk
0:02:27.1]} 7. Nc3 {[%clk 0:02:48.9]} 7... c5 {[%clk 0:02:12.8]} 8. dxc5 {[%clk
0:02:47.7]} 8... Nxc5 {[%clk 0:02:07.3]} 9. Rd1 {[%clk 0:02:35.7]} 9... Qa5
{[%clk 0:01:50.8]} 10. cxd5 {[%clk 0:02:35.5]} 10... exd5 {[%clk 0:01:47.6]} 11.
Be2 {[%clk 0:02:20.1]} 11... Nce4 {[%clk 0:01:36.2]} 12. O-O {[%clk 0:02:19.8]}
12... Nxg5 {[%clk 0:00:42.5]} 13. Nxg5 {[%clk 0:02:19.4]} 13... d4 {[%clk
0:00:43.1]} 14. Nce4 {[%clk 0:02:17.4]} 14... Nxe4 {[%clk 0:00:41.7]} 15. Nxe4
{[%clk 0:02:10.7]} 15... dxe3 {[%clk 0:00:42]} 16. Bc4 {[%clk 0:01:56.4]} 16...
exf2+ {[%clk 0:00:20.2]} 17. Rxf2 {[%clk 0:01:56.4]} 17... Bf5 {[%clk
0:00:20.8]} 18. b4 {[%clk 0:01:45.4]} 18... Qe5 {[%clk 0:00:19]} 19. Nf6+ {[%clk
0:01:25]} 19... Bxf6 {[%clk 0:00:17.5]} 20. Rxf5 {[%clk 0:01:24]} 20... Qe3+
{[%clk 0:00:17.3]} 21. Kh1 {[%clk 0:01:23.2]} 21... Rac8 {[%clk 0:00:15.9]} 22.
Rf3 {[%clk 0:00:46.3]} 22... Qe7 {[%clk 0:00:15.1]} 23. Qb3 {[%clk 0:00:34.8]}
23... Rfd8 {[%clk 0:00:15.3]} 24. Rff1 {[%clk 0:00:25.7]} 24... Rxd1 {[%clk
0:00:10.6]} 25. Rxd1 {[%clk 0:00:26.6]} 25... g6 {[%clk 0:00:10]} 26. Bd5 {[%clk
0:00:20.4]} 26... Kg7 {[%clk 0:00:09.5]} 27. Bf3 {[%clk 0:00:21]} 27... Rc7
{[%clk 0:00:08.4]} 28. a3 {[%clk 0:00:19.2]} 28... b6 {[%clk 0:00:08.8]} 29. Qa4
{[%clk 0:00:18.6]} 29... Qe6 {[%clk 0:00:07.8]} 30. Qa6 {[%clk 0:00:14.6]} 30...
Re7 {[%clk 0:00:07.7]} 31. Qd3 {[%clk 0:00:13.1]} 31... h5 {[%clk 0:00:07.5]}
32. h3 {[%clk 0:00:12.5]} 32... Qe5 {[%clk 0:00:07.8]} 33. Rf1 {[%clk
0:00:12.4]} 33... Qg3 {[%clk 0:00:07.6]} 34. Be4 {[%clk 0:00:11.9]} 34... Qe5
{[%clk 0:00:05.5]} 35. Qf3 {[%clk 0:00:12.1]} 35... Qg5 {[%clk 0:00:05.4]} 36.
Bd5 {[%clk 0:00:11.6]} 36... Rd7 {[%clk 0:00:05.4]} 37. Bb3 {[%clk 0:00:11]}
37... Qe5 {[%clk 0:00:05]} 38. Qc6 {[%clk 0:00:09.5]} 38... Re7 {[%clk
0:00:05.2]} 39. Qf3 {[%clk 0:00:09.6]} 39... Qc3 {[%clk 0:00:05.2]} 40. Qxc3
{[%clk 0:00:08.7]} 40... Bxc3 {[%clk 0:00:06.1]} 41. Bd5 {[%clk 0:00:08.3]}
41... Bb2 {[%clk 0:00:06.2]} 42. a4 {[%clk 0:00:08.2]} 42... Bc3 {[%clk
0:00:06.8]} 43. b5 {[%clk 0:00:08.4]} 43... f5 {[%clk 0:00:07.3]} 44. Rc1 {[%clk
0:00:07.7]} 44... Re3 {[%clk 0:00:06.4]} 45. Kg1 {[%clk 0:00:06.2]} 45... Bd4
{[%clk 0:00:05.9]} 46. Kf1 {[%clk 0:00:06.2]} 46... Bc5 {[%clk 0:00:05.6]} 47.
a5 {[%clk 0:00:06.5]} 47... Re5 {[%clk 0:00:05.2]} 48. axb6 {[%clk 0:00:05.3]}
48... axb6 {[%clk 0:00:04.9]} 49. Bc6 {[%clk 0:00:05.4]} 49... Kf6 {[%clk
0:00:05.5]} 50. Re1 {[%clk 0:00:05.8]} 50... Be3 {[%clk 0:00:05.9]} 51. Ke2
{[%clk 0:00:05.8]} 51... f4 {[%clk 0:00:03.9]} 52. Kf3 {[%clk 0:00:06]} 52...
Rc5 {[%clk 0:00:04.3]} 53. Rd1 {[%clk 0:00:05.9]} 53... Rc2 {[%clk 0:00:04.5]}
54. g4 {[%clk 0:00:05.7]} 54... Rf2+ {[%clk 0:00:03.7]} 55. Ke4 {[%clk
0:00:05.8]} 55... hxg4 {[%clk 0:00:04.2]} 56. hxg4 {[%clk 0:00:06.3]} 56... Kg5
{[%clk 0:00:04]} 57. Rd6 {[%clk 0:00:06.4]} 57... Re2 {[%clk 0:00:03.1]} 58. Kf3
{[%clk 0:00:04.8]} 58... Rf2+ {[%clk 0:00:03.3]} 59. Ke4 {[%clk 0:00:05.4]}
59... Re2 {[%clk 0:00:04]} 60. Kf3 {[%clk 0:00:05.6]} 60... Rf2+ {[%clk
0:00:04.2]} 61. Ke4 {[%clk 0:00:06.2]} 1/2-1/2

[Event "Early-Titled-Tuesday-Blitz-February-06-2024"]
[Site "Chess.com"]
[Date "2024.02.06"]
[Round "9"]
[White "Fandorine"]
[Black "Yaacovn"]
[Result "0-1"]
[WhiteElo "2952"]
[BlackElo "2855"]
[TimeControl "180+1"]
[EndTime "9:45:36 PST"]
[Termination "Yaacovn won by resignation"]

1. Nf3 {[%clk 0:03:00.9]} 1... Nf6 {[%clk 0:02:59.9]} 2. g3 {[%clk 0:03:00]}
2... c6 {[%clk 0:03:00.2]} 3. c4 {[%clk 0:02:57.8]} 3... d5 {[%clk 0:03:01.1]}
4. d4 {[%clk 0:02:58.1]} 4... Bf5 {[%clk 0:03:00.8]} 5. Nc3 {[%clk 0:02:57.4]}
5... e6 {[%clk 0:03:01.3]} 6. Qb3 {[%clk 0:02:54.2]} 6... Qb6 {[%clk 0:03:01.1]}
7. c5 {[%clk 0:02:49.8]} 7... Qc7 {[%clk 0:03:00.3]} 8. Bf4 {[%clk 0:02:49.5]}
8... Qc8 {[%clk 0:03:00.8]} 9. Bg2 {[%clk 0:02:50.1]} 9... Nbd7 {[%clk
0:03:01.2]} 10. O-O {[%clk 0:02:49.7]} 10... Be7 {[%clk 0:03:00.8]} 11. Nd2
{[%clk 0:02:48.3]} 11... O-O {[%clk 0:02:59.8]} 12. e4 {[%clk 0:02:37.1]} 12...
dxe4 {[%clk 0:02:59.9]} 13. Ndxe4 {[%clk 0:02:37.6]} 13... Bxe4 {[%clk
0:02:57.1]} 14. Nxe4 {[%clk 0:02:36.4]} 14... Nxe4 {[%clk 0:02:57.6]} 15. Bxe4
{[%clk 0:02:37.1]} 15... Nf6 {[%clk 0:02:57.8]} 16. Bf3 {[%clk 0:02:37.8]} 16...
Rd8 {[%clk 0:02:56]} 17. Rad1 {[%clk 0:02:34.6]} 17... Nd5 {[%clk 0:02:56.4]}
18. Bd2 {[%clk 0:02:30.5]} 18... Bf6 {[%clk 0:02:55.8]} 19. Qc4 {[%clk 0:02:26]}
19... Ne7 {[%clk 0:02:54.8]} 20. Bc3 {[%clk 0:02:15]} 20... Qd7 {[%clk
0:02:51.1]} 21. Be4 {[%clk 0:01:58.8]} 21... g6 {[%clk 0:02:41.2]} 22. a4 {[%clk
0:01:56.7]} 22... a5 {[%clk 0:02:39.4]} 23. h4 {[%clk 0:01:55.6]} 23... h5
{[%clk 0:02:38.8]} 24. Kg2 {[%clk 0:01:55.4]} 24... Qc7 {[%clk 0:02:35.6]} 25.
Rfe1 {[%clk 0:01:41.8]} 25... Rd7 {[%clk 0:02:33.4]} 26. Bc2 {[%clk 0:01:15.6]}
26... Rad8 {[%clk 0:02:29]} 27. Rxe6 {[%clk 0:01:04.6]} 27... fxe6 {[%clk
0:02:13.7]} 28. Qxe6+ {[%clk 0:01:04.3]} 28... Kg7 {[%clk 0:02:14]} 29. d5
{[%clk 0:01:01.3]} 29... Ng8 {[%clk 0:01:18.9]} 30. d6 {[%clk 0:00:41]} 30...
Qc8 {[%clk 0:01:19.1]} 31. Qe4 {[%clk 0:00:39.1]} 31... Bxc3 {[%clk 0:01:10.8]}
32. Qxg6+ {[%clk 0:00:39.2]} 32... Kf8 {[%clk 0:01:11.2]} 33. bxc3 {[%clk
0:00:30.3]} 33... Rg7 {[%clk 0:01:10.6]} 34. Qxh5 {[%clk 0:00:27]} 34... Qg4
{[%clk 0:01:08.1]} 35. Qe5 {[%clk 0:00:26.6]} 35... Re8 {[%clk 0:00:59.2]} 36.
Qd4 {[%clk 0:00:22.6]} 36... Qxd4 {[%clk 0:00:58.2]} 37. cxd4 {[%clk 0:00:22.8]}
37... Nf6 {[%clk 0:00:55.5]} 38. Bf5 {[%clk 0:00:21.6]} 38... Nd5 {[%clk
0:00:51.3]} 39. Rd2 {[%clk 0:00:19.7]} 39... Re1 {[%clk 0:00:41.8]} 40. Kf3
{[%clk 0:00:16]} 40... Rf7 {[%clk 0:00:39.6]} 41. g4 {[%clk 0:00:16.1]} 41...
Rh1 {[%clk 0:00:27.5]} 42. h5 {[%clk 0:00:15.9]} 42... Rh3+ {[%clk 0:00:27]} 43.
Ke4 {[%clk 0:00:16.2]} 43... Rh1 {[%clk 0:00:15.3]} 44. Rd3 {[%clk 0:00:09.8]}
44... Re1+ {[%clk 0:00:13.1]} 45. Kf3 {[%clk 0:00:10.1]} 45... Ke8 {[%clk
0:00:13]} 46. Rb3 {[%clk 0:00:08]} 46... Kd8 {[%clk 0:00:12.2]} 47. Kg3 {[%clk
0:00:08.1]} 47... Rg1+ {[%clk 0:00:12]} 48. Kh4 {[%clk 0:00:08]} 48... Nf6
{[%clk 0:00:09.5]} 49. f3 {[%clk 0:00:07.4]} 49... Rg7 {[%clk 0:00:07.9]} 50.
Re3 {[%clk 0:00:06.6]} 50... Rg8 {[%clk 0:00:04.6]} 51. Re2 {[%clk 0:00:06.2]}
51... Rh1+ {[%clk 0:00:03.9]} 52. Kg3 {[%clk 0:00:06.7]} 52... Nxh5+ {[%clk
0:00:04.5]} 53. Kg2 {[%clk 0:00:07]} 53... Nf4+ {[%clk 0:00:04.9]} 54. Kxh1
{[%clk 0:00:07.7]} 54... Nxe2 {[%clk 0:00:05.5]} 55. Kh2 {[%clk 0:00:08.5]}
55... Nxd4 {[%clk 0:00:05.9]} 56. Be4 {[%clk 0:00:09.1]} 56... Nb3 {[%clk
0:00:05.8]} 57. Kg3 {[%clk 0:00:09.7]} 57... Nxc5 {[%clk 0:00:06.2]} 58. Bf5
{[%clk 0:00:10]} 58... Rf8 {[%clk 0:00:05.4]} 59. Bc2 {[%clk 0:00:09.7]} 59...
b5 {[%clk 0:00:05.5]} 60. axb5 {[%clk 0:00:09.8]} 60... cxb5 {[%clk 0:00:06.4]}
61. g5 {[%clk 0:00:10.7]} 61... a4 {[%clk 0:00:06.8]} 62. f4 {[%clk 0:00:11.3]}
62... a3 {[%clk 0:00:07.2]} 63. f5 {[%clk 0:00:12.2]} 63... a2 {[%clk
0:00:07.5]} 64. f6 {[%clk 0:00:13.1]} 64... a1=Q {[%clk 0:00:08]} 0-1

[Event "Early-Titled-Tuesday-Blitz-February-06-2024"]
[Site "Chess.com"]
[Date "2024.02.06"]
[Round "9"]
[White "TregubovP"]
[Black "Kotlyar_K"]
[Result "1-0"]
[WhiteElo "2687"]
[BlackElo "2495"]
[TimeControl "180+1"]
[EndTime "9:45:43 PST"]
[Termination "TregubovP won by checkmate"]

1. e4 {[%clk 0:02:58.1]} 1... c6 {[%clk 0:02:59.8]} 2. Nf3 {[%clk 0:02:56.7]}
2... d5 {[%clk 0:03:00.3]} 3. Nc3 {[%clk 0:02:57.2]} 3... dxe4 {[%clk
0:02:57.5]} 4. Nxe4 {[%clk 0:02:57.4]} 4... Nf6 {[%clk 0:02:58.2]} 5. Qe2 {[%clk
0:02:57.6]} 5... Nxe4 {[%clk 0:02:58.1]} 6. Qxe4 {[%clk 0:02:58.1]} 6... Nd7
{[%clk 0:02:58]} 7. Bc4 {[%clk 0:02:58.5]} 7... Nf6 {[%clk 0:02:58.2]} 8. Ne5
{[%clk 0:02:59.1]} 8... e6 {[%clk 0:02:57.8]} 9. Qf4 {[%clk 0:02:59.3]} 9... b5
{[%clk 0:02:15.2]} 10. Be2 {[%clk 0:02:57.7]} 10... Bd6 {[%clk 0:02:15.3]} 11.
d4 {[%clk 0:02:57.1]} 11... O-O {[%clk 0:02:14.4]} 12. O-O {[%clk 0:02:53.1]}
12... Nd5 {[%clk 0:02:12.5]} 13. Qe4 {[%clk 0:02:34]} 13... f5 {[%clk
0:02:10.2]} 14. Qf3 {[%clk 0:02:26.4]} 14... c5 {[%clk 0:02:10.2]} 15. Bxb5
{[%clk 0:02:12]} 15... cxd4 {[%clk 0:02:04.6]} 16. Bc6 {[%clk 0:02:03]} 16...
Rb8 {[%clk 0:01:29.4]} 17. Bxd5 {[%clk 0:01:45.8]} 17... Bxe5 {[%clk 0:01:29]}
18. Re1 {[%clk 0:01:43.2]} 18... Bxh2+ {[%clk 0:00:43.6]} 19. Kxh2 {[%clk
0:01:43.1]} 19... exd5 {[%clk 0:00:44.5]} 20. b3 {[%clk 0:01:39]} 20... Bb7
{[%clk 0:00:38.7]} 21. Bf4 {[%clk 0:01:31.5]} 21... Rc8 {[%clk 0:00:38.6]} 22.
Re2 {[%clk 0:01:28.2]} 22... Rc3 {[%clk 0:00:33.8]} 23. Qh5 {[%clk 0:01:23.9]}
23... d3 {[%clk 0:00:20.4]} 24. cxd3 {[%clk 0:01:22.7]} 24... Rxd3 {[%clk
0:00:21.3]} 25. Rae1 {[%clk 0:01:18.7]} 25... Bc6 {[%clk 0:00:18.6]} 26. Re7
{[%clk 0:01:08.9]} 26... Rd4 {[%clk 0:00:16.9]} 27. Qg5 {[%clk 0:01:04]} 27...
Rf7 {[%clk 0:00:15.8]} 28. Bc7 {[%clk 0:00:35.4]} 28... h6 {[%clk 0:00:12]} 29.
Qe3 {[%clk 0:00:20.8]} 29... Qxe7 {[%clk 0:00:11.7]} 30. Qxe7 {[%clk 0:00:19.4]}
30... Rxe7 {[%clk 0:00:12.6]} 31. Rxe7 {[%clk 0:00:19.7]} 31... Rd2 {[%clk
0:00:09.8]} 32. Be5 {[%clk 0:00:18.1]} 32... g5 {[%clk 0:00:07.9]} 33. Kg3
{[%clk 0:00:11.5]} 33... d4 {[%clk 0:00:06.3]} 34. f3 {[%clk 0:00:10.9]} 34...
Kf8 {[%clk 0:00:04.3]} 35. Rxa7 {[%clk 0:00:10.3]} 35... Ke8 {[%clk 0:00:04.2]}
36. Rc7 {[%clk 0:00:10.4]} 36... Bd7 {[%clk 0:00:04.5]} 37. Rc4 {[%clk
0:00:09.5]} 37... f4+ {[%clk 0:00:04.8]} 38. Kh2 {[%clk 0:00:08.1]} 38... d3
{[%clk 0:00:03.9]} 39. Rd4 {[%clk 0:00:08.4]} 39... Bc6 {[%clk 0:00:04.3]} 40.
Kh3 {[%clk 0:00:08]} 40... Bb5 {[%clk 0:00:03.5]} 41. a4 {[%clk 0:00:07.4]}
41... Bd7+ {[%clk 0:00:03.9]} 42. Kh2 {[%clk 0:00:06.5]} 42... Rd1 {[%clk
0:00:04.5]} 43. a5 {[%clk 0:00:05.4]} 43... Bb5 {[%clk 0:00:03.3]} 44. Rd5
{[%clk 0:00:04]} 44... Ba6 {[%clk 0:00:03]} 45. Rd6 {[%clk 0:00:04.2]} 45... Bb5
{[%clk 0:00:03.4]} 46. a6 {[%clk 0:00:04.6]} 46... Rb1 {[%clk 0:00:02]} 47. a7
{[%clk 0:00:04.5]} 47... Bd7 {[%clk 0:00:01.6]} 48. Rxd7 {[%clk 0:00:04.2]}
48... Kxd7 {[%clk 0:00:01.9]} 49. a8=Q {[%clk 0:00:04.9]} 49... Rd1 {[%clk
0:00:02.5]} 50. Qd5+ {[%clk 0:00:05.3]} 50... Ke7 {[%clk 0:00:02.8]} 51. Qd6+
{[%clk 0:00:05.3]} 51... Kf7 {[%clk 0:00:03.7]} 52. Qd7+ {[%clk 0:00:04.7]}
52... Kg6 {[%clk 0:00:04.6]} 53. Qg7+ {[%clk 0:00:03.9]} 53... Kh5 {[%clk
0:00:04.3]} 54. Qf7+ {[%clk 0:00:04.3]} 54... Kh4 {[%clk 0:00:04.9]} 55. Qg6
{[%clk 0:00:04.1]} 55... Rh1+ {[%clk 0:00:04.7]} 56. Kxh1 {[%clk 0:00:03.8]}
56... d2 {[%clk 0:00:05.3]} 57. Qxh6+ {[%clk 0:00:03.9]} 57... Kg3 {[%clk
0:00:05.8]} 58. Qd6 {[%clk 0:00:02.9]} 58... Kf2 {[%clk 0:00:06.7]} 59. Qxd2+
{[%clk 0:00:03.2]} 59... Kg3 {[%clk 0:00:07.5]} 60. Kg1 {[%clk 0:00:03.4]} 60...
Kh4 {[%clk 0:00:07.6]} 61. Qe1+ {[%clk 0:00:03.9]} 61... Kh5 {[%clk 0:00:08.1]}
62. Qd2 {[%clk 0:00:04.5]} 62... Kg6 {[%clk 0:00:08.8]} 63. Qd6+ {[%clk
0:00:05.1]} 63... Kh5 {[%clk 0:00:09.6]} 64. Qf6 {[%clk 0:00:05.5]} 64... Kh4
{[%clk 0:00:10.1]} 65. Qf5 {[%clk 0:00:05.7]} 65... g4 {[%clk 0:00:10]} 66.
Qxg4# {[%clk 0:00:05.7]} 1-0

[Event "Early-Titled-Tuesday-Blitz-February-06-2024"]
[Site "Chess.com"]
[Date "2024.02.06"]
[Round "9"]
[White "AA95"]
[Black "Rurep26"]
[Result "1/2-1/2"]
[WhiteElo "2514"]
[BlackElo "2741"]
[TimeControl "180+1"]
[EndTime "9:45:43 PST"]
[Termination "Game drawn - insufficient material"]

1. d4 {[%clk 0:03:00.9]} 1... e6 {[%clk 0:02:59.7]} 2. Nf3 {[%clk 0:03:00.9]}
2... Nf6 {[%clk 0:02:58.9]} 3. c4 {[%clk 0:03:00.7]} 3... Bb4+ {[%clk
0:02:56.9]} 4. Bd2 {[%clk 0:02:58.9]} 4... Qe7 {[%clk 0:02:57.8]} 5. e3 {[%clk
0:02:56.9]} 5... O-O {[%clk 0:02:56.8]} 6. Bd3 {[%clk 0:02:56.8]} 6... Bxd2+
{[%clk 0:02:51.9]} 7. Nbxd2 {[%clk 0:02:56.4]} 7... d6 {[%clk 0:02:52.8]} 8. Qc2
{[%clk 0:02:49.3]} 8... Nc6 {[%clk 0:02:50.8]} 9. a3 {[%clk 0:02:44]} 9... a5
{[%clk 0:02:49.8]} 10. O-O {[%clk 0:02:41.5]} 10... e5 {[%clk 0:02:48.5]} 11. d5
{[%clk 0:02:40]} 11... Nb8 {[%clk 0:02:47.6]} 12. Rae1 {[%clk 0:02:33.5]} 12...
Na6 {[%clk 0:02:44.8]} 13. Bf5 {[%clk 0:02:16]} 13... Bxf5 {[%clk 0:02:36.5]}
14. Qxf5 {[%clk 0:02:15.6]} 14... g6 {[%clk 0:02:37.4]} 15. Qc2 {[%clk
0:02:00.9]} 15... Nc5 {[%clk 0:02:34.1]} 16. e4 {[%clk 0:02:00.9]} 16... c6
{[%clk 0:02:28.1]} 17. b4 {[%clk 0:02:00.5]} 17... axb4 {[%clk 0:02:15.8]} 18.
axb4 {[%clk 0:02:01.4]} 18... Na6 {[%clk 0:02:16.1]} 19. Qb3 {[%clk 0:01:51.4]}
19... c5 {[%clk 0:02:15.7]} 20. bxc5 {[%clk 0:01:35.2]} 20... Nxc5 {[%clk
0:02:15.1]} 21. Qc2 {[%clk 0:01:33.2]} 21... Ra3 {[%clk 0:02:10.5]} 22. Rb1
{[%clk 0:01:32.2]} 22... Rfa8 {[%clk 0:02:07.8]} 23. Rb2 {[%clk 0:01:15.9]}
23... Qc7 {[%clk 0:01:54.3]} 24. Rfb1 {[%clk 0:01:11.3]} 24... Qa5 {[%clk
0:01:49.1]} 25. Nb3 {[%clk 0:01:01.9]} 25... Nxb3 {[%clk 0:01:41.3]} 26. Rxb3
{[%clk 0:01:02.8]} 26... Ra2 {[%clk 0:01:32.5]} 27. Qd3 {[%clk 0:00:58.2]} 27...
Ng4 {[%clk 0:01:22.5]} 28. h3 {[%clk 0:00:38.1]} 28... Nxf2 {[%clk 0:01:08.5]}
29. Qe3 {[%clk 0:00:37.9]} 29... Qa7 {[%clk 0:01:02.8]} 30. Qxa7 {[%clk
0:00:27.2]} 30... R8xa7 {[%clk 0:01:03.7]} 31. Rxb7 {[%clk 0:00:24.5]} 31...
Rxb7 {[%clk 0:01:02.4]} 32. Rxb7 {[%clk 0:00:25.4]} 32... Nxe4 {[%clk
0:01:02.3]} 33. Rc7 {[%clk 0:00:15.9]} 33... Rc2 {[%clk 0:00:58]} 34. Kh2 {[%clk
0:00:12.3]} 34... Kg7 {[%clk 0:00:54.2]} 35. h4 {[%clk 0:00:11.3]} 35... h6
{[%clk 0:00:53.7]} 36. Kh3 {[%clk 0:00:10.4]} 36... Nf2+ {[%clk 0:00:45.1]} 37.
Kg3 {[%clk 0:00:09.7]} 37... Nd1 {[%clk 0:00:41.7]} 38. c5 {[%clk 0:00:08.4]}
38... Rxc5 {[%clk 0:00:23.1]} 39. Rxc5 {[%clk 0:00:08.1]} 39... dxc5 {[%clk
0:00:24]} 40. d6 {[%clk 0:00:07.8]} 40... Kf6 {[%clk 0:00:21.6]} 41. d7 {[%clk
0:00:07.4]} 41... Ke7 {[%clk 0:00:21.8]} 42. Nxe5 {[%clk 0:00:07.7]} 42... Ne3
{[%clk 0:00:20.6]} 43. Nxf7 {[%clk 0:00:03.5]} 43... Nf5+ {[%clk 0:00:20.5]} 44.
Kh3 {[%clk 0:00:02.9]} 44... Kxd7 {[%clk 0:00:20.6]} 45. Ne5+ {[%clk 0:00:02.6]}
45... Kd6 {[%clk 0:00:20.7]} 46. Nxg6 {[%clk 0:00:03.5]} 46... c4 {[%clk
0:00:21.6]} 47. Nf4 {[%clk 0:00:04]} 47... c3 {[%clk 0:00:21.2]} 48. Ne2 {[%clk
0:00:04.4]} 48... c2 {[%clk 0:00:21.6]} 49. g4 {[%clk 0:00:04.9]} 49... Nd4
{[%clk 0:00:20.5]} 50. Nc1 {[%clk 0:00:05]} 50... Ke5 {[%clk 0:00:20.3]} 51. g5
{[%clk 0:00:04.5]} 51... hxg5 {[%clk 0:00:20.1]} 52. hxg5 {[%clk 0:00:05]} 52...
Kf5 {[%clk 0:00:19.3]} 53. g6 {[%clk 0:00:04.5]} 53... Kxg6 {[%clk 0:00:19.2]}
54. Kg4 {[%clk 0:00:05]} 54... Kf6 {[%clk 0:00:16.7]} 55. Kf4 {[%clk 0:00:05.2]}
55... Nb5 {[%clk 0:00:16.8]} 56. Ke3 {[%clk 0:00:04.5]} 56... Ke5 {[%clk
0:00:17.7]} 57. Kd3 {[%clk 0:00:04.8]} 57... Na3 {[%clk 0:00:17.8]} 58. Kc3
{[%clk 0:00:04.5]} 58... Ke4 {[%clk 0:00:17.2]} 59. Kb3 {[%clk 0:00:04.6]} 59...
Kf3 {[%clk 0:00:16.8]} 60. Kxa3 {[%clk 0:00:04.8]} 60... Ke3 {[%clk 0:00:17.7]}
61. Kb3 {[%clk 0:00:05]} 61... Kd2 {[%clk 0:00:18.6]} 62. Kb2 {[%clk 0:00:05.3]}
62... Ke3 {[%clk 0:00:19.5]} 63. Kc3 {[%clk 0:00:05.6]} 63... Ke4 {[%clk
0:00:19.3]} 64. Kd2 {[%clk 0:00:05.9]} 64... Kd5 {[%clk 0:00:20.2]} 65. Kxc2
{[%clk 0:00:06.7]} 1/2-1/2

[Event "Early-Titled-Tuesday-Blitz-February-06-2024"]
[Site "Chess.com"]
[Date "2024.02.06"]
[Round "9"]
[White "Sokoloco"]
[Black "GianmarcoVaR"]
[Result "1-0"]
[WhiteElo "2795"]
[BlackElo "2687"]
[TimeControl "180+1"]
[EndTime "9:45:44 PST"]
[Termination "Sokoloco won on time"]

1. b3 {[%clk 0:03:00.9]} 1... e5 {[%clk 0:02:46.1]} 2. Bb2 {[%clk 0:02:59.8]}
2... Nc6 {[%clk 0:02:45.7]} 3. e3 {[%clk 0:02:59.9]} 3... Nf6 {[%clk 0:02:45.4]}
4. Nf3 {[%clk 0:03:00.6]} 4... Bd6 {[%clk 0:02:43.6]} 5. d4 {[%clk 0:03:00.7]}
5... Qe7 {[%clk 0:02:37.5]} 6. d5 {[%clk 0:02:53.1]} 6... Nb8 {[%clk 0:02:34.8]}
7. c4 {[%clk 0:02:52.2]} 7... c5 {[%clk 0:02:21.8]} 8. Nc3 {[%clk 0:02:48.1]}
8... Bc7 {[%clk 0:02:18]} 9. Qc2 {[%clk 0:02:45.1]} 9... d6 {[%clk 0:02:16.6]}
10. Bd3 {[%clk 0:02:44.7]} 10... Ba5 {[%clk 0:02:10]} 11. O-O {[%clk 0:02:35.3]}
11... Nbd7 {[%clk 0:02:04.6]} 12. Nd2 {[%clk 0:02:22.9]} 12... O-O {[%clk
0:01:58.4]} 13. Rae1 {[%clk 0:02:16.1]} 13... a6 {[%clk 0:01:48.9]} 14. f4
{[%clk 0:02:12]} 14... b5 {[%clk 0:01:45.2]} 15. f5 {[%clk 0:02:09.3]} 15... Re8
{[%clk 0:01:31.2]} 16. e4 {[%clk 0:02:06.1]} 16... Bxc3 {[%clk 0:01:27.6]} 17.
Bxc3 {[%clk 0:02:03.5]} 17... b4 {[%clk 0:01:24.1]} 18. Bb2 {[%clk 0:02:03.5]}
18... a5 {[%clk 0:01:24.2]} 19. Be2 {[%clk 0:01:53.1]} 19... a4 {[%clk
0:01:13.4]} 20. g4 {[%clk 0:01:53.3]} 20... h6 {[%clk 0:01:12.2]} 21. Kh1 {[%clk
0:01:49.9]} 21... Nh7 {[%clk 0:01:09.8]} 22. Nf3 {[%clk 0:01:45.7]} 22... Ng5
{[%clk 0:01:08.1]} 23. Bc1 {[%clk 0:01:44.1]} 23... axb3 {[%clk 0:00:59.8]} 24.
axb3 {[%clk 0:01:42.1]} 24... Nf8 {[%clk 0:01:00.1]} 25. Bd3 {[%clk 0:01:06]}
25... Nfh7 {[%clk 0:00:58.9]} 26. Qf2 {[%clk 0:00:59.8]} 26... Bd7 {[%clk
0:00:41.5]} 27. Ng1 {[%clk 0:01:00]} 27... f6 {[%clk 0:00:31.2]} 28. h4 {[%clk
0:01:00.1]} 28... Nf7 {[%clk 0:00:31.7]} 29. Nf3 {[%clk 0:01:00.5]} 29... Ra5
{[%clk 0:00:17.9]} 30. Rg1 {[%clk 0:00:59.1]} 30... Rea8 {[%clk 0:00:17.7]} 31.
Bb1 {[%clk 0:00:56.7]} 31... Ra1 {[%clk 0:00:17.4]} 32. Bb2 {[%clk 0:00:57.4]}
32... R1a5 {[%clk 0:00:15.4]} 33. Rg3 {[%clk 0:00:42.3]} 33... Kf8 {[%clk
0:00:15.4]} 34. Reg1 {[%clk 0:00:43]} 34... Ke8 {[%clk 0:00:15.9]} 35. Bc1
{[%clk 0:00:40.2]} 35... Ra1 {[%clk 0:00:15.3]} 36. Qb2 {[%clk 0:00:35.7]} 36...
Kd8 {[%clk 0:00:09.8]} 37. g5 {[%clk 0:00:36.3]} 37... hxg5 {[%clk 0:00:09]} 38.
hxg5 {[%clk 0:00:37.2]} 38... fxg5 {[%clk 0:00:06.1]} 39. Nxg5 {[%clk
0:00:37.7]} 39... Nhxg5 {[%clk 0:00:06.3]} 40. Bxg5 {[%clk 0:00:38.3]} 40...
Nxg5 {[%clk 0:00:06.5]} 41. Rxg5 {[%clk 0:00:39.2]} 41... Be8 {[%clk 0:00:05.3]}
42. Kh2 {[%clk 0:00:24.4]} 42... Qf6 {[%clk 0:00:05.6]} 43. R1g4 {[%clk
0:00:17.3]} 43... Qh6+ {[%clk 0:00:06]} 44. Kg2 {[%clk 0:00:18.1]} 44... R8a3
{[%clk 0:00:02.6]} 45. Rg3 {[%clk 0:00:12.4]} 45... Qh4 {[%clk 0:00:02.9]} 46.
R5g4 {[%clk 0:00:12.7]} 46... Qh6 {[%clk 0:00:03.2]} 47. Kf2 {[%clk 0:00:10.5]}
47... Rxb1 {[%clk 0:00:02.3]} 48. Qxb1 {[%clk 0:00:09.8]} 48... Qd2+ {[%clk
0:00:03]} 49. Kg1 {[%clk 0:00:09.3]} 49... Qd4+ {[%clk 0:00:03.4]} 50. Kh2
{[%clk 0:00:07.4]} 50... Ra1 {[%clk 0:00:04.1]} 51. Qd3 {[%clk 0:00:07.3]} 51...
Ra2+ {[%clk 0:00:03.4]} 52. Kh3 {[%clk 0:00:06.6]} 52... Qf2 {[%clk 0:00:03.7]}
53. Rg2 {[%clk 0:00:06]} 53... Rd2 {[%clk 0:00:02.7]} 54. Qxd2 {[%clk
0:00:05.4]} 54... Qf3+ {[%clk 0:00:02.4]} 55. R2g3 {[%clk 0:00:04]} 55... Qh1+
{[%clk 0:00:02.6]} 56. Qh2 {[%clk 0:00:04.7]} 56... Qf1+ {[%clk 0:00:03.1]} 57.
Qg2 {[%clk 0:00:05.5]} 57... Qd1 {[%clk 0:00:02.9]} 58. Kh2 {[%clk 0:00:05]}
58... g6 {[%clk 0:00:02.7]} 59. fxg6 {[%clk 0:00:04.9]} 59... Bxg6 {[%clk
0:00:03.3]} 60. Rxg6 {[%clk 0:00:04.2]} 60... Qh5+ {[%clk 0:00:04.2]} 61. Qh3
{[%clk 0:00:04.8]} 61... Qe2+ {[%clk 0:00:04.8]} 62. Rg2 {[%clk 0:00:05.6]}
62... Qxe4 {[%clk 0:00:04.4]} 63. Qh8+ {[%clk 0:00:05.6]} 63... Ke7 {[%clk
0:00:04]} 64. Qh7+ {[%clk 0:00:06.2]} 1-0